Cogmind - Beta 11.1 @@@ ROGUE MODE // 2022.06.01 @ 10:05:08 Player: Savant Result: Destroyed by G-47 Trooper with Particle Gun Performance ------------- Evolutions (1) 500 Regions Visited (6) 1200 Robots Destroyed (53) 265 Value Destroyed (1181) 1181 Prototype IDs (6) 120 Alien Tech Used (0) 0 Bonus (140) 140 TOTAL SCORE: 3406 Bonus ------- Follower Combat Kills 140 Cogmind --------- Core Integrity 0/400 Matter 275/300 Energy 280/280 System Corruption 0% Temperature Cool (9) Movement Walking (260) Ox2 Location -8/Mines Parts ------- > --- POWER (1) -------- Heavy Ion Engine > --- PROPULSION (3) --- Aluminum Leg Aluminum Leg Wheel > --- UTILITY (3) ------ High-capacity Storage Unit Improved Targeting Computer > --- WEAPON (2) ------- Mace Makeshift Hammer > --- INVENTORY (20) --- Heavy Ion Engine Aluminum Leg Aluminum Leg Makeshift Leg Compact Wheel Large Storage Unit Huge Storage Unit Hacking Suite Improved EM Shotgun Improved EM Shotgun Improved EM Shotgun Improved Assault Rifle Improved Assault Rifle Improved Assault Rifle Improved Assault Rifle Improved Grenade Launcher Improved Grenade Launcher Datajack Plasma Cutter Peak State ------------ > --- POWER ------------ Heavy Ion Engine > --- PROPULSION ------- Aluminum Leg Aluminum Leg Makeshift Leg > --- UTILITY ---------- High-capacity Storage Unit High-capacity Storage Unit Improved Targeting Computer > --- WEAPON ----------- Improved Assault Rifle Improved Assault Rifle > --- INVENTORY -------- Heavy Ion Engine Light Treads Aluminum Leg Aluminum Leg Large Storage Unit Huge Storage Unit Hacking Suite Improved EM Shotgun Improved EM Shotgun Improved EM Shotgun Improved Assault Rifle Improved Assault Rifle Improved Grenade Launcher Improved Grenade Launcher Datajack Plasma Cutter Mace Makeshift Hammer [Rating: 23] Favorites ----------- Power Heavy Ion Engine Engine Heavy Ion Engine Propulsion Light Treads Treads Light Treads Leg Aluminum Leg Wheel Wheel Utility High-capacity Storage Unit Device Improved Heat Sink Storage High-capacity Storage Unit Processor Signal Interpreter Protection Propulsion Shielding Weapon Improved Assault Rifle Energy Gun Medium Laser Ballistic Gun Improved Assault Rifle Launcher Grenade Launcher Impact Weapon Mace Build | -11 -10 -10 -9 -9 -9 -8 ------- Run | Scr Mat Min Mat Min Exi Min Slots Evolved 2 | . . . 2 . . . Power . | . . . . . . . Propulsion 1 | . . . 1 . . . Utility 1 | . . . 1 . . . Weapon . | . . . . . . . Parts Attached 80 | 7 17 2 34 13 2 5 Power 6 | 1 3 . 1 1 . . Engine 6 | 1 3 . 1 1 . . Core . | . . . . . . . Reactor . | . . . . . . . Propulsion 28 | 3 6 . 9 7 . 3 Treads 9 | 1 1 . 5 1 . 1 Leg 9 | . 2 . 1 5 . 1 Wheel 10 | 2 3 . 3 1 . 1 Hover . | . . . . . . . Flight . | . . . . . . . Utility 16 | 1 3 . 10 . 2 . Device 2 | . . . 2 . . . Storage 6 | 1 2 . 2 . 1 . Processor 3 | . . . 2 . 1 . Hackware . | . . . . . . . Protection 5 | . 1 . 4 . . . Artifact . | . . . . . . . Weapon 30 | 2 5 2 14 5 . 2 Energy Gun 4 | 1 . . 3 . . . Energy Cannon . | . . . . . . . Ballistic Gun 12 | 1 5 1 3 2 . . Ballistic Cannon . | . . . . . . . Launcher 1 | . . 1 . . . . Special Weapon . | . . . . . . . Impact Weapon 13 | . . . 8 3 . 2 Slashing Weapon . | . . . . . . . Piercing Weapon . | . . . . . . . Special Melee Weapon . | . . . . . . . Unidentified Prototypes 4 | . . . 4 . . . Parts Lost 13 | . 2 . 2 8 . 1 Power 2 | . 1 . . 1 . . Propulsion 8 | . 1 . 1 5 . 1 Utility 3 | . . . 1 2 . . Weapon . | . . . . . . . Highest Loss Streak 5 | . 2 . 1 5 . 1 To Critical Strikes . | . . . . . . . Average Slot Usage (%) 95 | . 96 100 99 93 80 87 Engine 11 | . 13 14 11 11 11 11 Treads 15 | . 13 14 21 17 . 6 Leg 6 | . . . . 7 33 20 Wheel 9 | . 13 14 11 8 . 6 Storage 11 | . 14 14 11 11 11 11 Processor 2 | . . . 5 . 2 11 Protection 12 | . 11 14 14 16 . . Ballistic Gun 13 | . 26 27 6 4 22 20 Impact Weapon 9 | . . . 15 17 . 2 Naked Turns . | . . . . . . . Heaviest Build 57 | 14 50 50 57 55 54 54 Greatest Support 43 | 20 20 10 43 40 40 40 Greatest Overweight (x) 5 | 1 4 4 5 5 1 5 Average Overweight (x) 3 | . 3 4 4 4 1 3 Largest Inventory Capacity 25 | 8 20 20 25 20 20 20 Average Capacity 19 | 7 19 20 20 20 20 20 Most Carried 20 | 5 17 17 20 20 19 20 Average Carried 17 | 3 12 17 19 18 18 19 Final Capacity 20 | 8 20 20 20 20 20 20 Final Carried 20 | 5 17 17 20 19 18 19 Class Distribution -------------------- 91% | Mutant 8% | Scavenger-Mutant Dominant Class ---------------- Mutant | -10/Materials Mutant | -10/Mines Mutant | -9/Materials Mutant | -9/Mines Mutant | -9/Exiles Mutant | -8/Mines Resources | -11 -10 -10 -9 -9 -9 -8 ----------- Run | Scr Mat Min Mat Min Exi Min Matter Collected 1577 | 270 508 29 576 142 . 52 Remotely . | . . . . . . . Salvage Created 1731 | . 516 6 650 465 . 94 Parts 75 | . 30 3 22 16 . 4 Haulers Intercepted 6 | . . . 6 . . . Recyclers Shooed . | . . . . . . . Parts Field Recycled . | . . . . . . . Retrieved Matter . | . . . . . . . Parts Self-Destructed . | . . . . . . . Prevented . | . . . . . . . Kills | -11 -10 -10 -9 -9 -9 -8 ------- Run | Scr Mat Min Mat Min Exi Min Combat Hostiles Destroyed 40 | . 13 2 11 14 . . Melee 11 | . . . 4 7 . . Guns 19 | . 13 . 1 5 . . AOE 2 | . . 2 . . . . Classes Destroyed 8 | . 4 . 2 1 . 1 Worker 1 | . . . . . . 1 Tunneler 1 | . . . . 1 . . Hauler 6 | . . . 6 . . . Recycler 3 | . 1 . . 1 . 1 Operator 2 | . 1 . 1 . . . Swarmer 15 | . 3 2 4 6 . . Grunt 22 | . 10 . 4 8 . . Sentry 3 | . . . 3 . . . Best Kill Streak 4 | . 3 2 4 3 . 2 Combat Bots Only 4 | . 3 2 4 3 . . Max Kills in Single Turn 2 | . 1 1 1 2 . 1 Gunslinging 1 | . . . . 1 . . Exploded 1 | . . 1 . . . . Melee 1 | . . . 1 1 . . Uniques/NPCs Destroyed . | . . . . . . . Combat | -11 -10 -10 -9 -9 -9 -8 -------- Run | Scr Mat Min Mat Min Exi Min Damage Taken 2432 | . 646 34 457 1055 . 240 Core 501 | . 93 8 51 238 . 111 Absorbed by Shields . | . . . . . . . Redirected to Shielding 123 | . 19 2 22 80 . . Core Remaining (%) 79 | 100 . 59 . . . . Volleys Fired 65 | . 39 3 14 7 . 2 Largest 2 | . 2 1 2 2 . 2 Hottest 46 | . 46 30 46 46 . 46 Shots Fired 127 | . 78 3 28 14 . 4 Gun 124 | . 78 . 28 14 . 4 Cannon . | . . . . . . . Launcher 3 | . . 3 . . . . Special . | . . . . . . . Kinetic 124 | . 78 . 28 14 . 4 Thermal . | . . . . . . . Explosive 3 | . . 3 . . . . Electromagnetic . | . . . . . . . Robot Hit Streak 19 | . 12 . 12 19 . 6 Robot Miss Streak 3 | . 3 . 1 2 . 1 Penetration Max . | . . . . . . . Secondary Targets 4 | . 2 . . 2 . . Max Gunslinging Chain 1 | . 1 . . 1 . . Shots Hit Robots 157 | . 54 . 63 35 . 5 Core Hits 45 | . 21 2 9 11 . 2 Critical Kills 1 | . . . . 1 . . Critical Parts Destroyed 14 | . . . 8 5 . 1 Critical Strikes 16 | . . . 9 6 . 1 Destroy 2 | . . . 1 1 . . Smash 14 | . . . 8 5 . 1 Melee Attacks 101 | . . . 57 38 . 6 Impact 101 | . . . 57 38 . 6 Slashing . | . . . . . . . Piercing . | . . . . . . . Sneak Attacks 10 | . . . 7 3 . . Combat Hostiles 1 | . . . 1 . . . Follow-up Attacks 15 | . . . 11 3 . 1 Damage Inflicted 3863 | . 765 133 1694 1120 . 151 Guns 1378 | . 765 . 393 184 . 36 Cannons . | . . . . . . . Explosions 133 | . . 133 . . . . Melee 2352 | . . . 1301 936 . 115 Ramming . | . . . . . . . Kinetic 1378 | . 765 . 393 184 . 36 Thermal . | . . . . . . . Explosive 133 | . . 133 . . . . Electromagnetic . | . . . . . . . Impact 2352 | . . . 1301 936 . 115 Slashing . | . . . . . . . Piercing . | . . . . . . . Highest Corruption . | . . . . . . . Average Corruption . | . . . . . . . Corruption Purged . | . . . . . . . Corruption Blocked . | . . . . . . . Overload Shots . | . . . . . . . Overflow Damage 788 | . . . 378 366 . 44 Projectiles . | . . . . . . . Explosions . | . . . . . . . Melee 788 | . . . 378 366 . 44 Knockbacks 7 | . . . . 7 . . Impact 7 | . . . . 7 . . Kinetic . | . . . . . . . Secondary . | . . . . . . . Self-Inflicted Damage . | . . . . . . . Shots . | . . . . . . . Rammed . | . . . . . . . Targets Rammed . | . . . . . . . Kicked . | . . . . . . . Crushed . | . . . . . . . Highest Temperature 312 | . 49 . 312 9 . 1 Average Temperature 51 | . 20 . 158 4 . 1 Received Heat Transfer 1107 | . 360 . 135 477 . 135 Siege Activations . | . . . . . . . Robots Corrupted . | . . . . . . . Combat Hostiles . | . . . . . . . Parts Fried 15 | . . . 5 10 . . Impact Corruptions 32 | . . . 18 13 . 1 Robots Melted . | . . . . . . . Combat Hostiles . | . . . . . . . Parts Melted . | . . . . . . . Heat Transferred . | . . . . . . . Parts Sabotaged . | . . . . . . . Parts Stolen . | . . . . . . . Parts Stripped . | . . . . . . . Power Chain Reactions . | . . . . . . . Missiles Intercepted . | . . . . . . . Alert | -11 -10 -10 -9 -9 -9 -8 ------- Run | Scr Mat Min Mat Min Exi Min Peak Influence 284 | . 238 143 284 222 . 10 Initial 53 | . . 20 . 53 . . Average 73 | . 106 43 85 62 . 5 Maximum Alert Level 1 | . 1 . 1 1 . . Low Security (%) 93 | 100 96 100 87 96 . 100 Level 1 6 | . 3 . 12 3 . . Level 2 . | . . . . . . . Level 3 . | . . . . . . . Level 4 . | . . . . . . . Level 5 . | . . . . . . . High Security . | . . . . . . . Max Security . | . . . . . . . Squads Dispatched 5 | . 3 . 2 . . . Investigation 2 | . 1 . 1 . . . Extermination . | . . . . . . . Reinforcement 3 | . 2 . 1 . . . Assault . | . . . . . . . Garrison . | . . . . . . . Intercept . | . . . . . . . Searches Triggered . | . . . . . . . Construction Impeded . | . . . . . . . Haulers Reinforced . | . . . . . . . Active Scanning Responses . | . . . . . . . Cargo Convoy Interrupts . | . . . . . . . Stealth | -11 -10 -10 -9 -9 -9 -8 --------- Run | Scr Mat Min Mat Min Exi Min Distress Signals 5 | . 5 . . . . . Communications Jammed . | . . . . . . . Distress Signals . | . . . . . . . Times Spotted 74 | . 30 3 22 16 . 3 Peak Tracking Total 5 | . 5 3 4 3 . 3 Tactical Retreats 10 | . 4 . 3 3 . . Traps | -11 -10 -10 -9 -9 -9 -8 ------- Run | Scr Mat Min Mat Min Exi Min Traps Triggered 3 | . 2 . 1 . . . Indirectly . | . . . . . . . Trap Hack Attempts . | . . . . . . . Triggered . | . . . . . . . Disarmed . | . . . . . . . Reprogrammed . | . . . . . . . Reused . | . . . . . . . Traps Extracted . | . . . . . . . Installed . | . . . . . . . Triggered 1 | . . . 1 . . . Machines | -11 -10 -10 -9 -9 -9 -8 ---------- Run | Scr Mat Min Mat Min Exi Min Machines Disabled . | . . . . . . . Max in Single Turn . | . . . . . . . Machines Sabotaged . | . . . . . . . Garrisons Compromised . | . . . . . . . Overloaded Fab Kills . | . . . . . . . Hacking | -11 -10 -10 -9 -9 -9 -8 --------- Run | Scr Mat Min Mat Min Exi Min Machines Accessed 17 | . 6 . 9 1 1 . Terminals 13 | . 5 . 7 1 . . Fabricators . | . . . . . . . Repair Stations . | . . . . . . . Recycling Units 2 | . 1 . 1 . . . Scanalyzers 1 | . . . 1 . . . Garrison Access . | . . . . . . . Total Hacks 53 | . 14 . 32 3 4 . Successful 35 | . 8 . 21 2 4 . Failed 18 | . 6 . 11 1 . . Catastrophic 2 | . . . 2 . . . Database Lockouts . | . . . . . . . Manual 26 | . 9 . 14 3 . . Terminals 40 | . 13 . 24 3 . . Fabricators . | . . . . . . . Repair Stations . | . . . . . . . Recycling Units 5 | . 1 . 4 . . . Scanalyzers 4 | . . . 4 . . . Garrison Access . | . . . . . . . Terminal Hacks 20 | . 4 . 10 2 4 . Record 4 | . . . . . 4 . Robot Analysis 3 | . 1 . 2 . . . Prototype ID Bank 2 | . 1 . 1 . . . Branch Access Points 1 | . . . 1 . . . Alert Level 1 | . . . 1 . . . Unreport Threat 5 | . 1 . 2 2 . . Locate Traps 2 | . 1 . 1 . . . Hauler Manifests 1 | . . . 1 . . . Zone Layout 1 | . . . 1 . . . Fabricator Hacks . | . . . . . . . Repair Station Hacks . | . . . . . . . Recycling Unit Hacks 1 | . . . 1 . . . Retrieve Components 1 | . . . 1 . . . Scanalyzer 4 | . . . 4 . . . Insert Component 2 | . . . 2 . . . Analyze 2 | . . . 2 . . . Garrison Access Hacks . | . . . . . . . Unauthorized Hacks 10 | . 4 . 6 . . . Terminals 7 | . 3 . 4 . . . Track 1 | . . . 1 . . . Botnet 5 | . 3 . 2 . . . Operators 1 | . . . 1 . . . Fabricators . | . . . . . . . Repair Stations . | . . . . . . . Recycling Units 3 | . 1 . 2 . . . Reject 1 | . . . 1 . . . Tunnel 2 | . 1 . 1 . . . Scanalyzers . | . . . . . . . Garrison Access . | . . . . . . . Data Cores Recovered . | . . . . . . . Used . | . . . . . . . Hacking Detections 13 | . 5 . 8 . . . Full Trace Events 1 | . 1 . . . . . Feedback Events . | . . . . . . . Feedback Blocked . | . . . . . . . Robot Schematics Acquired . | . . . . . . . Robots Built . | . . . . . . . Authchips . | . . . . . . . Time . | . . . . . . . Total Robot Build Rating . | . . . . . . . Part Schematics Acquired 2 | . . . 2 . . . Parts Built . | . . . . . . . Authchips . | . . . . . . . Time . | . . . . . . . Total Part Build Rating . | . . . . . . . Parts Repaired . | . . . . . . . Time . | . . . . . . . Parts Recycled . | . . . . . . . Recycled Matter . | . . . . . . . Retrieved Matter . | . . . . . . . Retrieved Components 10 | . . . 10 . . . Parts Scanalyzed 2 | . . . 2 . . . Part Schematics Acquired 2 | . . . 2 . . . Parts Damaged . | . . . . . . . Bothacking | -11 -10 -10 -9 -9 -9 -8 ------------ Run | Scr Mat Min Mat Min Exi Min Used RIF Installer . | . . . . . . . Robots Hacked . | . . . . . . . Non-combat . | . . . . . . . Combat . | . . . . . . . Robot Hacks Applied . | . . . . . . . Relay Couplers Released . | . . . . . . . Fabnet Peak Effective % . | . . . . . . . Robots Rewired . | . . . . . . . Allies Hacked . | . . . . . . . Hacks Repelled . | . . . . . . . Allies | -11 -10 -10 -9 -9 -9 -8 -------- Run | Scr Mat Min Mat Min Exi Min Total Allies 5 | . . 3 . 2 . . Largest Group 3 | . . 3 3 2 . . Highest-Rated Group 45 | . . 40 40 45 . . Highest-Rated Ally 31 | . . 16 16 31 . . Total Orders . | . . . . . . . Ally Attacks 49 | . . 5 39 5 . . Total Damage 589 | . . 16 489 84 . . Kills 11 | . . 1 10 . . . Allies Corrupted . | . . . . . . . Allies Melted . | . . . . . . . Intel | -11 -10 -10 -9 -9 -9 -8 ------- Run | Scr Mat Min Mat Min Exi Min Robot Analysis Total 3 | . 1 . 2 . . . Derelict Logs Recovered 2 | . . 1 . 1 . . Drone Launches . | . . . . . . . Drone Recoveries . | . . . . . . . Exploration | -11 -10 -10 -9 -9 -9 -8 ------------- Run | Scr Mat Min Mat Min Exi Min Turns Passed 5514 | 63 883 591 1951 1217 586 223 Spaces Moved 3021 | 41 454 416 1081 619 298 112 Core 1 | 1 . . . . . . Treads 20 | 14 . . 6 . . . Legs 463 | . 1 . . 120 298 44 Wheels 2537 | 26 453 416 1075 499 . 68 Hover . | . . . . . . . Flight . | . . . . . . . Fastest Speed 50 | 50 95 140 105 155 196 155 Average Speed 155 | 117 134 140 154 163 196 171 Slowest Speed 280 | 160 260 140 240 280 196 196 Overloaded Moves . | . . . . . . . Propulsion Burnouts . | . . . . . . . Robots Hopped . | . . . . . . . Cave-ins Triggered . | . . . . . . . Exploration Rate (%) 58 | 4 72 85 66 86 65 29 Regions Visited 6 Branch Regions 4 Pre-discovered Areas 5 | . 1 2 1 . 1 . Known Exits Taken 1 | . . . 1 . . . Unknown Exits Taken 5 | 1 1 1 . 1 1 . Scrap Searched 2 | . . 1 . 1 . . Spaces Dug 6 | . . . 5 1 . . Terrain Destroyed 29 | . . 23 5 1 . . Melee 6 | . . . 5 1 . . Projectile . | . . . . . . . AOE 23 | . . 23 . . . . Terrain Rammed . | . . . . . . . Walls Destroyed . | . . . . . . . Machines Disabled . | . . . . . . . Actions | -11 -10 -10 -9 -9 -9 -8 --------- Run | Scr Mat Min Mat Min Exi Min Total 3560 | 52 648 421 1259 751 301 128 Wait 229 | . 118 1 37 71 . 2 Move 3015 | 40 453 415 1080 618 297 112 Hop . | . . . . . . . Pick Up 41 | 5 12 . 19 3 . 2 Fast Attach 32 | 6 10 . 12 3 1 . Attach 18 | . 4 . 7 5 1 1 Detach 16 | . 5 . 9 1 1 . Swap 30 | 1 3 2 15 5 . 4 Drop 32 | . 4 . 23 4 1 . Fire 65 | . 39 3 14 7 . 2 Melee 82 | . . . 43 34 . 5 Ram . | . . . . . . . Kick . | . . . . . . . Crush . | . . . . . . . Escape Stasis . | . . . . . . . Rewire . | . . . . . . . Trap . | . . . . . . . Miscellaneous . | . . . . . . . Route ------- -11/Scrapyard -10/Materials (discovered 2 exits: *Mat / [*Min]) -10/Mines -9/Materials (discovered 2 exits: *Mat / *Min) -9/Mines (discovered 3 exits: *Mat x2 / *Exi) -9/Exiles -8/Mines History --------- Turn | Location | Event 14 | -11/Scrapyard | Discovered new exit (range 16) 64 | -11/Scrapyard | Entered Materials 318 | -10/Materials | Build established: Mutant 583 | -10/Materials | Discovered new exit (range 9) 797 | -10/Materials | Discovered new exit (range 15) 947 | -10/Materials | Entered Mines 1000 | -10/Mines | Learned location of Storage (-8) 1160 | -10/Mines | Assisted by bots powering up and referring to "LRC-V3" 1229 | -10/Mines | Assembled infested the area 1397 | -10/Mines | Discovered new exit (range 15) 1458 | -10/Mines | Learned location of Zion (-6) 1538 | -10/Mines | Entered Materials 1538 | -9/Materials | Accompanied by 3 allies 1538 | -9/Materials | Evolved 2 slots: Propulsion x1, Utility x1 1658 | -9/Materials | Met 8R-AWN 1740 | -9/Materials | Discovered new exit (range 7) 1885 | -9/Materials | Identified exit to Mines 2628 | -9/Materials | Build established: Scavenger-Mutant 2677 | -9/Materials | Discovered new exit (range 16) 2705 | -9/Materials | Identified exit to Materials 3114 | -9/Materials | Build established: Mutant 3489 | -9/Materials | Entered Mines 3490 | -9/Mines | Followed 8R-AWN into the Mines 3586 | -9/Mines | Discovered new exit (range 5) 3930 | -9/Mines | Discovered exit to Materials (range 6) 4382 | -9/Mines | A weapon hastily lodged in a ceiling crevice suddenly fell to the ground 4414 | -9/Mines | Core integrity fell below 50% 4436 | -9/Mines | Lost 5 parts (1p2n2u) 4543 | -9/Mines | Discovered exit to Materials (range 3) 4706 | -9/Mines | Entered Exiles 4754 | -9/Exiles | Welcomed by 8R-AWN 4787 | -9/Exiles | Met EX-HEX 4877 | -9/Exiles | Met EX-DEC 4995 | -9/Exiles | Met EX-BIN 5073 | -9/Exiles | Learned about 8R-AWN's background 5269 | -9/Exiles | Discovered new exit (range 14) 5292 | -9/Exiles | Entered Mines 5499 | -8/Mines | Core integrity fell below 20% 5515 | -8/Mines | Destroyed by G-47 Trooper with Particle Gun Last Messages --------------- 05366_ K-01 Serf collects debris. 05374_ K-01 Serf destroyed. 05379_ Acquired 26 matter. 05383_ Acquired Wheel. 05387_ R-06 Scavenger collects Lgt. Ion Engine. 05391_ R-06 Scavenger destroyed. 05400_ R-06 Scavenger collects Lgt. Ion Engine. 05401_ Acquired Com. Wheel. 05402_ Acquired 26 matter. 05404_ R-06 Scavenger collects Lgt. Ion Engine. 05415_ K-01 Serf collects debris. 05501_ Mak. Hammer follow-up attack on G-50 Soldier. 05503_ G-50 Soldier suffers critical hit (Burn). 05505_ G-50 Soldier destroyed. 05506_ K-01 Serf collects debris. 05509_ Lgt. Treads destroyed. 05512_ K-01 Serf collects debris. 05512_ G-47 Trooper suffers critical hit (Smash). 05512_ Destroyed Aluminum Leg. 05512_ G-47 Trooper system corrupted by crushing effect. Map ----- +----------------------------------------------------+ | ???????????????????????????## #??????????????? | | ??????????????????????????## #??????????????? | | ????????????####??????????# ##????##????????? | | ???????????## ##?????????# #???## ##???????? | | ?????????### #?????????## ##?## #???????? | | ????????## #??####????## ### #????????? | | ????????# #### ##????## ##????????? | | ????????# ## ##????## """ #?????????? | | ????????# ####??# """ #?????????? | | ????????# ## ##### """ ##????????? | | ????????## ##### #?## #????????? | | ?????????## ##???# #?### #????????? | | ??????????# ##????# #???## #????????? | | ??????????## #?????## ##????## #????????? | | ???????????## #??????##########?## #????????? | | ????????????# ##???????????## ### #????????? | | ???????????## ##???????????# #????????? | | ??????????## ##?####?????# #????????? | | ?????????## ### ##????## ##????????? | | ?????????# #?????##### ##?????????? | | ?????????# ######????# ###??????????? | | ?????????## ## ##???# #????????????? | | ??????????## #???# #????????????? | | ???????????### [ ##### #####????????? | | ?????????????## =uk #????????? | | ??????????????##### ##@ g % #???????? | | ??????????????????######## ###### #????? | | ?????????????????????????##g ##????# #???? | | ??????????????????????????# #?????# #???? | | ?????????????????????????# #?????# #???? | | ??????????????????????? #??????## #???? | | ???????????????????? ##????????? #???? | | ???????????????????###### ###???????????#???? | | ????????????????????????### ##?????????????????? | | ??????????????????????????# ##??????????????????? | | ??????????????????????????# #???????????????????? | | ??????????????????????????# #???????????????????? | | ??????????????????????????# ???????????????????? | | ??????????????????????????# ???????????????????? | | ??????????????????????????####???????????????????? | | ?????????????????????????????????????????????????? | | ?????????????????????????????????????????????????? | | ?????????????????????????????????????????????????? | | ?????????????????????????????????????????????????? | | ?????????????????????????????????????????????????? | | ?????????????????????????????????????????????????? | | ?????????????????????????????????????????????????? | | ?????????????????????????????????????????????????? | | ?????????????????????????????????????????????????? | | ?????????????????????????????????????????????????? | +----------------------------------------------------+ Best States ------------- Heat Dissipation 42 Energy Generation 14 Energy Capacity 280 Matter Stores 300 Matter Capacity 300 Sight Range 16 Terrain Scan Density 10 Armor Coverage 150 Core Shielding 20 Propulsion Shielding 33 Evasion (%) 41 Targeting Accuracy 6 Recoil Reduction 2 Item Schematics ----------------- Huge Storage Unit | -9/Materials | Scanalyzed Hcp. Storage Unit | -9/Materials | Scanalyzed Robot Schematics ------------------ None Fabricated ------------ Nothing Alien Tech Used ----------------- None Achievements -------------- None Challenges ------------ None Game ------ Seed ChromaticControlCalibrator Manual? 0 Play Time 00:36:12 Cumulative 256.7 hours Start 2022.06.01 @ 09:29:58 End 2022.06.01 @ 10:05:08 Sessions 1 Manual Loads 0 Difficulty Rogue Special Mode None Game No. 75 Rogue 75 Adventurer 0 Explorer 0 Win Type - Total 14 Types 12/0/2/0/0/0/0/0/0 Lore% 85 Gallery% 85 Achievement% 72 Wizard Run 0 Options --------- ASCII 0 Keyboard 0 Movement Numpad Keybinds 0 Fullscreen 1 Font 14/SmallcapsGlow Map View 84x54 Tactical HUD 1 Map Filters NONE Filters NONE Steam 1 RUN: 06f0366d-28b0-4409-9e07-6b082653b030